fUSD/lending_fUSD_20241202
["ID","MTS","AMOUNT","RATE_DAILY","PERIOD"]
[343965240,1733159438272,-150.0,7.698e-05,2]
[343965241,1733159438283,-1926.229,7.698e-05,2]
[343965242,1733159438295,-178.778,7.698e-05,2]
[343965243,1733159438318,-1112.625,7.698e-05,2]
[343965244,1733159438329,-150.0,7.698e-05,2]
[343965245,1733159438339,-344.76530131,7.698e-05,2]
[343965246,1733159438352,-184.84169869,7.698e-05,2]
[343965247,1733159438362,-816.0,7.698e-05,2]
[343965248,1733159438371,-1190.334,7.698e-05,2]
[343965249,1733159438381,-535.0,7.698e-05,2]
[343965250,1733159438391,-249.99259783,7.699e-05,2]
[343965251,1733159438401,-23147.64971362,7.699e-05,2]
[343965252,1733159438411,-24197.43198986,7.699e-05,2]
[343965253,1733159438423,-962.88,7.699e-05,2]
[343965254,1733159438435,-8420.22221706,7.699e-05,2]
[343965255,1733159438445,-2586.46,7.699e-05,2]
[343965256,1733159438455,-79138.69836343,7.7e-05,2]
[343965257,1733159438474,-485.71830164,7.7e-05,2]
[343965258,1733159438494,-1354.631555,7.7e-05,2]
[343965259,1733159438514,-12166.617546,7.7e-05,2]
[343965381,1733159440136,-1428.50840388,7.7e-05,2]
[343965389,1733159440203,-964.4,7.7e-05,2]
[343965391,1733159440216,-386.06462008,7.7e-05,2]
[343965393,1733159440227,-429.20605798,7.7e-05,2]
[343965399,1733159440276,-365.67274138,7.7e-05,2]
[343965667,1733159443260,-5762.47622413,7.7e-05,2]
[343965668,1733159443271,-2465.36044247,7.7e-05,2]
[343965669,1733159443283,-610.4499994,7.7e-05,2]
[343965670,1733159443374,-16355.5200934,7.7e-05,2]
[343965671,1733159443386,-12490.51410553,7.7e-05,2]
[343965672,1733159443398,-3811.0292208,7.7e-05,2]
[343965673,1733159443409,-3864.84652574,7.7e-05,2]
[343965674,1733159443421,-5171.76904328,7.7e-05,2]
[343965675,1733159443433,-5954.38345617,7.7e-05,2]
[343965676,1733159443444,-4008.85580615,7.7e-05,2]
[343965699,1733159446598,-440.0170404,7.545e-05,2]
[343965701,1733159446609,-743.08673433,7.545e-05,2]
[343965703,1733159446619,-754.51326567,7.7e-05,2]
[343965706,1733159446636,-5675.57388188,7.7e-05,2]
[343965708,1733159446647,-13615.14463759,7.7e-05,2]
[343965710,1733159446658,-2028.8249875,7.7e-05,2]
[343965716,1733159504050,-200.0,7.546e-05,2]
[343965720,1733159820463,190.39,6.974e-05,2]
[343965721,1733159911998,1540.983,7.094e-05,2]
[343965722,1733159932366,376.0,7.094e-05,2]
[343965725,1733160046025,-360.7235545,0.00025,120]
[343965726,1733160046049,-500.0,0.00025,120]
[343965727,1733160046071,-504.43,0.00025,120]
[343965728,1733160046093,-504.43,0.00025,120]
[343965729,1733160046114,-504.43,0.00025,120]
[343965730,1733160046139,-504.43,0.00025,120]
[343965731,1733160046164,-504.43,0.00025,120]
[343965732,1733160046191,-504.43,0.00025,120]
[343965733,1733160046214,-504.43,0.00025,120]
[343965734,1733160046236,-504.43,0.00025,120]
[343965735,1733160046259,-504.43,0.00025,120]
[343965736,1733160046282,-19.4064455,0.00025,120]
[343965737,1733160102376,-485.0235545,0.00025,120]
[343965738,1733160102403,-504.43,0.00025,120]
[343965739,1733160102429,-504.43,0.00025,120]
[343965740,1733160102461,-504.43,0.00025,120]
[343965741,1733160102490,-504.43,0.00025,120]
[343965742,1733160102517,-504.43,0.00025,120]
[343965743,1733160102545,-504.43,0.00025,120]
[343965744,1733160102573,-504.43,0.00025,120]
[343965745,1733160102600,-504.43,0.00025,120]
[343965746,1733160102626,-504.43,0.00025,120]
[343965747,1733160102652,-504.43,0.00025,120]
[343965748,1733160102679,-504.43,0.00025,120]
[343965749,1733160102709,-504.43,0.00025,120]
[343965750,1733160102736,-504.43,0.00025,120]
[343965751,1733160102763,-504.4991487,0.00025,120]
[343965752,1733160102791,-500.0,0.00025,120]
[343965753,1733160102818,-500.0,0.00025,120]
[343965754,1733160102844,-500.0,0.00025,120]
[343965755,1733160103270,-500.0,0.00025,120]
[343965756,1733160103300,-500.0,0.00025,120]
[343965757,1733160103329,-500.0,0.00025,120]
[343965758,1733160103357,-500.0,0.00025,120]
[343965759,1733160103385,-500.0,0.00025,120]
[343965760,1733160103413,-500.0,0.00025,120]
[343965761,1733160103447,-500.0,0.00025,120]
[343965762,1733160103477,-500.0,0.00025,120]
[343965763,1733160103505,-500.0,0.00025,120]
[343965764,1733160103533,-500.0,0.00025,120]
[343965765,1733160103561,-585.07819732,0.00025,120]
[343965766,1733160103589,-500.0,0.00025,120]
[343965767,1733160103615,-500.0,0.00025,120]
[343965768,1733160103643,-500.0,0.00025,120]
[343965769,1733160103674,-500.0,0.00025,120]
[343965770,1733160103709,-500.0,0.00025,120]
[343965771,1733160103739,-500.0,0.00025,120]
[343965772,1733160103768,-500.0,0.00025,120]
[343965773,1733160103798,-500.0,0.00025,120]
[343965774,1733160103827,-500.0,0.00025,120]
[343965775,1733160103855,-629.53362418,0.00025,120]
[343965776,1733160103884,-500.0,0.00025,120]
[343965777,1733160103913,-500.0,0.00025,120]
[343965778,1733160103941,-500.0,0.00025,120]
[343965779,1733160103970,-500.0,0.00025,120]
[343965780,1733160103998,-500.0,0.00025,120]
[343965781,1733160104026,-500.0,0.00025,120]
[343965782,1733160104054,-500.0,0.00025,120]
[343965783,1733160104082,-500.0,0.00025,120]
[343965784,1733160104110,-500.0,0.00025,120]
[343965785,1733160104138,-500.0,0.00025,120]
[343965786,1733160104167,-500.0,0.00025,120]
[343965787,1733160104203,-500.0,0.00025,120]
[343965788,1733160104232,-500.0,0.00025,120]
[343965789,1733160104261,-500.0,0.00025,120]
[343965790,1733160104289,-500.0,0.00025,120]
[343965791,1733160104318,-500.0,0.00025,120]
[343965792,1733160104346,-500.0,0.00025,120]
[343965793,1733160104374,-500.0,0.00025,120]
[343965794,1733160104401,-500.0,0.00025,120]
[343965795,1733160104430,-494.84133529,0.00025,120]
[343965796,1733160104461,-500.0,0.00025,120]
[343965797,1733160104496,-500.0,0.00025,120]
[343965798,1733160104524,-500.0,0.00025,120]
[343965799,1733160104554,-526.00495326,0.00025,120]
[343965800,1733160104590,-500.0,0.00025,120]
[343965801,1733160104620,-500.0,0.00025,120]
[343965802,1733160104649,-500.0,0.00025,120]
[343965803,1733160104677,-500.0,0.00025,120]
[343965804,1733160104708,-500.0,0.00025,120]
[343965805,1733160104734,-500.0,0.00025,120]
[343965806,1733160104762,-500.0,0.00025,120]
[343965807,1733160104789,-500.0,0.00025,120]
[343965808,1733160104816,-500.0,0.00025,120]
[343965809,1733160104844,-500.0,0.00025,120]
[343965810,1733160104871,-500.0,0.00025,120]
[343965811,1733160104898,-500.0,0.00025,120]
[343965812,1733160104926,-500.0,0.00025,120]
[343965813,1733160104958,-500.0,0.00025,120]
[343965814,1733160104986,-500.0,0.00025,120]
[343965815,1733160105013,-525.27126497,0.00025,120]
[343965816,1733160105039,-546.12,0.00025,120]
[343965817,1733160105066,-546.12,0.00025,120]
[343965818,1733160105091,-546.12,0.00025,120]
[343965819,1733160105118,-546.12,0.00025,120]
[343965820,1733160105144,-546.12,0.00025,120]
[343965821,1733160105171,-546.12,0.00025,120]
[343965822,1733160105201,-546.12,0.00025,120]
[343965823,1733160105229,-546.12,0.00025,120]
[343965824,1733160105256,-546.12,0.00025,120]
[343965825,1733160105283,-546.12,0.00025,120]
[343965826,1733160105310,-546.12,0.00025,120]
[343965827,1733160105336,-546.12,0.00025,120]
[343965828,1733160105363,-546.12,0.00025,120]
[343965829,1733160105390,-546.12,0.00025,120]
[343965830,1733160105419,-546.12,0.00025,120]
[343965831,1733160105449,-546.12,0.00025,120]
[343965832,1733160105477,-546.12,0.00025,120]
[343965833,1733160105506,-546.12,0.00025,120]
[343965834,1733160105533,-546.12,0.00025,120]
[343965835,1733160105560,-546.12,0.00025,120]
[343965836,1733160105587,-546.12,0.00025,120]
[343965837,1733160105613,-546.12,0.00025,120]
[343965838,1733160105641,-546.12,0.00025,120]
[343965839,1733160105668,-546.18,0.00025,120]
[343965840,1733160105698,-500.0,0.00025,120]
[343965841,1733160105725,-500.0,0.00025,120]
[343965842,1733160105752,-500.0,0.00025,120]
[343965843,1733160105778,-500.0,0.00025,120]
[343965844,1733160105805,-500.0,0.00025,120]
[343965845,1733160105832,-500.0,0.00025,120]
[343965846,1733160105858,-500.0,0.00025,120]
[343965847,1733160105885,-500.0,0.00025,120]
[343965848,1733160105912,-500.0,0.00025,120]
[343965849,1733160105942,-500.0,0.00025,120]
[343965850,1733160105969,-500.0,0.00025,120]
[343965851,1733160106347,-500.0,0.00025,120]
[343965852,1733160106376,-500.0,0.00025,120]
[343965853,1733160106404,-500.0,0.00025,120]
[343965854,1733160106433,-500.0,0.00025,120]
[343965855,1733160106464,-500.0,0.00025,120]
[343965856,1733160106509,-467.02444719,0.00025,120]
[343965857,1733160106552,-519.03,0.00025,120]
[343965858,1733160106591,-519.03,0.00025,120]
[343965859,1733160106629,-519.03,0.00025,120]
[343965860,1733160106668,-519.03,0.00025,120]
[343965861,1733160106710,-519.03,0.00025,120]
[343965862,1733160106753,-519.03,0.00025,120]
[343965863,1733160106796,-519.03,0.00025,120]
[343965864,1733160106838,-519.03,0.00025,120]
[343965865,1733160106879,-519.03,0.00025,120]
[343965866,1733160106917,-519.03,0.00025,120]
[343965867,1733160106956,-519.03,0.00025,120]
[343965868,1733160106993,-519.03,0.00025,120]
[343965869,1733160107031,-519.03,0.00025,120]
[343965870,1733160107069,-519.03,0.00025,120]
[343965871,1733160107110,-519.03,0.00025,120]
[343965872,1733160107151,-519.03,0.00025,120]
[343965873,1733160107195,-519.03,0.00025,120]
[343965874,1733160107235,-519.03,0.00025,120]
[343965875,1733160107272,-519.03,0.00025,120]
[343965876,1733160107312,-519.03,0.00025,120]
[343965877,1733160107352,-519.03,0.00025,120]
[343965878,1733160107392,-519.03,0.00025,120]
[343965879,1733160107433,-519.03,0.00025,120]
[343965880,1733160107481,-519.23,0.00025,120]
[343965881,1733160107521,-500.0,0.00025,120]
[343965882,1733160107562,-500.0,0.00025,120]
[343965883,1733160107602,-191.70048996,0.00025,120]
[343965884,1733160107641,-500.0,0.00025,120]
[343965885,1733160107689,-500.0,0.00025,120]
[343965886,1733160107731,-500.0,0.00025,120]
[343965887,1733160107772,-418.69033121,0.00025,120]
[343965888,1733160107811,-500.0,0.00025,120]
[343965889,1733160107850,-500.0,0.00025,120]
[343965890,1733160107889,-500.0,0.00025,120]
[343965891,1733160107934,-500.0,0.00025,120]
[343965892,1733160107977,-500.0,0.00025,120]
[343965893,1733160108018,-500.0,0.00025,120]
[343965894,1733160108061,-500.0,0.00025,120]
[343965895,1733160108104,-500.0,0.00025,120]
[343965896,1733160108147,-500.0,0.00025,120]
[343965897,1733160108195,-500.0,0.00025,120]
[343965898,1733160108239,-500.0,0.00025,120]
[343965899,1733160108284,-500.0,0.00025,120]
[343965900,1733160108328,-500.0,0.00025,120]
[343965901,1733160108371,-500.0,0.00025,120]
[343965902,1733160108413,-500.0,0.00025,120]
[343965903,1733160108455,-500.0,0.00025,120]
[343965904,1733160108502,-500.0,0.00025,120]
[343965905,1733160108547,-479.98358431,0.00025,120]
[343965906,1733160108593,-500.0,0.00025,120]
[343965907,1733160108635,-500.0,0.00025,120]
[343965908,1733160108680,-500.0,0.00025,120]
[343965909,1733160108725,-500.0,0.00025,120]
[343965910,1733160108766,-500.0,0.00025,120]
[343965911,1733160108808,-500.0,0.00025,120]
[343965912,1733160108850,-500.0,0.00025,120]
[343965913,1733160108891,-500.0,0.00025,120]
[343965914,1733160108932,-500.0,0.00025,120]
[343965915,1733160108976,-500.0,0.00025,120]
[343965916,1733160109017,-500.0,0.00025,120]
[343965917,1733160109059,-153.32155811,0.00025,120]
[343965918,1733160109100,-500.0,0.00025,120]
[343965919,1733160109142,-500.0,0.00025,120]
[343965920,1733160109192,-500.0,0.00025,120]
[343965921,1733160109241,-500.0,0.00025,120]
[343965922,1733160109283,-500.0,0.00025,120]
[343965923,1733160109325,-500.0,0.00025,120]
[343965924,1733160109368,-500.0,0.00025,120]
[343965925,1733160109412,-500.0,0.00025,120]
[343965926,1733160109457,-500.0,0.00025,120]
[343965927,1733160109503,-500.0,0.00025,120]
[343965928,1733160109548,-500.0,0.00025,120]
[343965929,1733160109596,-583.51618994,0.00025,120]
[343965930,1733160109641,-200.0,0.00025,120]
[343965932,1733160126417,-500.0,0.00025438,120]
[343965933,1733160126460,-2000.0,0.00025438,120]
[343965934,1733160126506,-505.718769,0.00025438,120]
[343965935,1733160126552,-400.0,0.00026,120]
[343965936,1733160126607,-2000.0,0.00026438,120]
[343965937,1733160126651,-513.026035,0.00026438,120]
[343965938,1733160126694,-1101.08,0.00026821,120]
[343965939,1733160126738,-1101.08,0.00026821,120]
[343965940,1733160126780,-1101.08,0.00026821,120]
[343965941,1733160126821,-1101.08,0.00026821,120]
[343965942,1733160126862,-1101.08,0.00026821,120]
[343965943,1733160126905,-1101.08,0.00026821,120]
[343965944,1733160126950,-1101.08,0.00026821,120]
[343965945,1733160126993,-1101.08,0.00026821,120]
[343965946,1733160127036,-1101.08,0.00026821,120]
[343965947,1733160127077,-1101.08,0.00026821,120]
[343965948,1733160127119,-1101.08,0.00026821,120]
[343965949,1733160127163,-1101.08,0.00026821,120]
[343965950,1733160127207,-1101.08,0.00026821,120]
[343965951,1733160127249,-1101.08,0.00026821,120]
[343965952,1733160127289,-1101.08,0.00026821,120]
[343965953,1733160127330,-1101.08,0.00026821,120]
[343965954,1733160127373,-1101.08,0.00026821,120]
[343965955,1733160127423,-1101.08,0.00026821,120]
[343965956,1733160127467,-1101.08,0.00026821,120]
[343965957,1733160127514,-1101.08,0.00026821,120]
[343965958,1733160127559,-1101.08,0.00026821,120]
[343965959,1733160127602,-1101.08,0.00026821,120]
[343965960,1733160127643,-1101.08,0.00026821,120]
[343965961,1733160127684,-1101.23272001,0.00026821,120]
[343965962,1733160127728,-500.0,0.00026938,120]
[343965963,1733160127771,-196.91531052,0.00027,120]
[343965964,1733160127814,-800.0,0.00027,120]
[343965965,1733160127869,-2000.0,0.00027438,120]
[343965966,1733160127916,-2000.0,0.00027534,120]
[343965967,1733160127962,-2000.0,0.00027671,120]
[343965968,1733160128007,-2000.0,0.00027808,120]
[343965969,1733160128057,-2000.0,0.00027945,120]
[343965970,1733160128100,-800.0,0.00028,120]
[343965971,1733160128143,-1000.0,0.00028,90]
[343965972,1733160128185,-2000.0,0.00028082,120]
[343965973,1733160128232,-2000.0,0.00028219,120]
[343965974,1733160128277,-2000.0,0.00028356,120]
[343965975,1733160128322,-525.350089,0.00028438,120]
[343965976,1733160128366,-2000.0,0.00028438,120]
[343965977,1733160128410,-2000.0,0.00028493,120]
[343965978,1733160128461,-2000.0,0.0002863,120]
[343965979,1733160128524,-2000.0,0.00028767,120]
[343965980,1733160128587,-2000.0,0.00028904,120]
[343965981,1733160128632,-800.0,0.00029,120]
[343965982,1733160128679,-2000.0,0.00029041,120]
[343965983,1733160128722,-1333.0,0.00029041,120]
[343965984,1733160128764,-2000.0,0.00029178,120]
[343965985,1733160128806,-2000.0,0.00029315,120]
[343965986,1733160128849,-2000.0,0.00029438,120]
[343965987,1733160128892,-2000.0,0.00029452,120]
[343965988,1733160128936,-2000.0,0.00029589,120]
[343965989,1733160128991,-2000.0,0.00029726,120]
[343965990,1733160129043,-2000.0,0.00029863,120]
[343965991,1733160129096,-800.0,0.0003,120]
[343965992,1733160129143,-2000.0,0.0003,120]
[343965993,1733160129191,-261.06433157,0.0003,120]
[343965994,1733160129248,-2000.0,0.0003,120]
[343965995,1733160129823,-151.0,0.0003,120]
[343965996,1733160129867,-202.96666667,0.0003,120]
[343965997,1733160129911,-200.0,0.0003,120]
[343965998,1733160129958,-2000.0,0.00030137,120]
[343965999,1733160130002,-2000.0,0.00030438,120]
[343966000,1733160130045,-202.96666667,0.00030849,120]
[343966001,1733160130090,-151.0,0.00031178,120]
[343966002,1733160130134,-2000.0,0.00031438,120]
[343966003,1733160130176,-2000.0,0.00031644,120]
[343966004,1733160130219,-2000.0,0.00031644,120]
[343966005,1733160130260,-202.96666667,0.00031699,120]
[343966006,1733160130301,-2000.0,0.00031781,120]
[343966007,1733160130342,-2000.0,0.00031781,120]
[343966008,1733160130384,-1300.0,0.000318,120]
[343966009,1733160130427,-2000.0,0.00031918,120]
[343966010,1733160130471,-2000.0,0.00031918,120]
[343966011,1733160130519,-500.0,0.00032,120]
[343966012,1733160130565,-1656.06552216,0.00032,120]
[343966013,1733160130610,-2000.0,0.00032055,120]
[343966014,1733160130653,-2000.0,0.00032055,120]
[343966015,1733160130703,-2000.0,0.00032192,120]
[343966016,1733160130745,-2000.0,0.00032192,120]
[343966017,1733160130787,-2000.0,0.00032329,120]
[343966018,1733160130829,-2000.0,0.00032329,120]
[343966019,1733160130870,-151.0,0.00032356,120]
[343966020,1733160130911,-2000.0,0.00032438,120]
[343966021,1733160130957,-2000.0,0.00032466,120]
[343966022,1733160131002,-2000.0,0.00032466,120]
[343966023,1733160131053,-15679.976,0.000325,120]
[343966024,1733160131099,-15679.976,0.000325,120]
[343966025,1733160131140,-15679.976,0.000325,120]
[343966026,1733160131183,-15679.976,0.000325,120]
[343966027,1733160131232,-15679.976,0.000325,120]
[343966028,1733160131274,-202.96666667,0.00032548,120]
[343966029,1733160131314,-2000.0,0.00032603,120]
[343966030,1733160131356,-2000.0,0.00032603,120]
[343966031,1733160131397,-2000.0,0.00032603,120]
[343966032,1733160131439,-2000.0,0.0003274,120]
[343966033,1733160131487,-2000.0,0.0003274,120]
[343966034,1733160131529,-2000.0,0.0003274,120]
[343966035,1733160131568,-2208.37,0.00032876,120]
[343966036,1733160131611,-2000.0,0.00032877,120]
[343966037,1733160131650,-2000.0,0.00032877,120]
[343966038,1733160131690,-2000.0,0.00032877,120]
[343966039,1733160131737,-300.0,0.00033,120]
[343966040,1733160131778,-2208.37,0.0003315,120]
[343966041,1733160131819,-202.96666667,0.00033397,120]
[343966042,1733160131858,-2208.37,0.00033424,120]
[343966043,1733160131899,-184.277059,0.00033438,120]
[343966044,1733160131943,-151.0,0.00033534,120]
[343966045,1733160131989,-2208.37,0.00033698,120]
[343966046,1733160132032,-2208.37,0.00033972,120]
[343966047,1733160132080,-500.0,0.00034,120]
[343966048,1733160132126,-1638.3297147,0.00034,120]
[343966049,1733160132169,-4181.76021035,0.00034,120]
[343966050,1733160132210,-878.75,0.00034,120]
[343966051,1733160132250,-713.9924928,0.00034,120]
[343966052,1733160132293,-2208.37,0.00034246,120]
[343966053,1733160132339,-202.96666667,0.00034247,120]
[343966054,1733160132381,-2000.0,0.00034384,120]
[343966055,1733160132429,-150.0,0.0003443,120]
[343966056,1733160132472,-2208.37,0.0003452,120]
[343966057,1733160132522,-2000.0,0.00034521,120]
[343966058,1733160132568,-2000.0,0.00034658,120]
[343966059,1733160132613,-151.0,0.00034712,120]
[343966060,1733160132658,-1167.08,0.00034746,120]
[343966061,1733160132704,-2208.37,0.00034794,120]
[343966062,1733160132746,-2000.0,0.00034795,120]
[343966063,1733160132787,-2000.0,0.00034932,120]
[343966064,1733160132829,-289.23,0.0003497,120]
[343966065,1733160132870,-179.0,0.0003497,120]
[343966066,1733160132910,-158.24,0.0003497,120]
[343966067,1733160132949,-150.5,0.0003497,120]
[343966068,1733160132991,-150.5,0.0003497,120]
[343966069,1733160133031,-253.16,0.0003497,120]
[343966070,1733160133071,-216.83,0.0003498,120]
[343966071,1733160133110,-150.5,0.0003498,120]
[343966072,1733160133148,-150.5,0.0003498,120]
[343966073,1733160133189,-150.5,0.0003498,120]
[343966074,1733160133237,-150.5,0.0003498,120]
[343966075,1733160133279,-150.5,0.0003498,120]
[343966076,1733160133322,-150.5,0.0003498,120]
[343966077,1733160133364,-150.5,0.0003499,120]
[343966078,1733160133404,-150.5,0.0003499,120]
[343966080,1733160133445,-150.5,0.0003499,120]
[343966081,1733160133488,-150.5,0.0003499,120]
[343966082,1733160133529,-150.5,0.0003499,120]
[343966083,1733160133569,-260.25,0.0003499,120]
[343966084,1733160133610,-150.5,0.0003499,120]
[343966085,1733160133649,-241.35,0.0003499,120]
[343966086,1733160133690,-150.5,0.0003499,120]
[343966087,1733160133732,-150.5,0.0003499,120]
[343966088,1733160133774,-1000.0,0.00035,120]
[343966089,1733160134275,-878.75,0.00035,120]
[343966090,1733160134318,-2000.0,0.00035068,120]
[343966091,1733160134363,-2208.37,0.00035068,120]
[343966092,1733160134404,-202.96666667,0.00035096,120]
[343966093,1733160134446,-2000.0,0.00035205,120]
[343966094,1733160134498,-2000.0,0.00035342,120]
[343966095,1733160134546,-2208.37,0.00035342,120]
[343966096,1733160134592,-2000.0,0.00035479,120]
[343966097,1733160134636,-2000.0,0.00035616,120]
[343966098,1733160134686,-2208.37,0.00035616,120]
[343966099,1733160134740,-1000.0,0.000358,120]
[343966100,1733160134781,-2208.37,0.0003589,120]
[343966101,1733160134825,-151.0,0.0003589,120]
[343966102,1733160134865,-202.96666667,0.00035945,120]
[343966103,1733160134907,-150.0,0.00035971,120]
[343966104,1733160134947,-878.75,0.00036,120]
[343966105,1733160134998,-800.0,0.00036,120]
[343966106,1733160135038,-1000.0,0.00036,120]
[343966107,1733160135080,-150.0,0.00036019,120]
[343966108,1733160135120,-2208.37,0.00036164,120]
[343966109,1733160135162,-150.0,0.00036193,120]
[343966110,1733160135204,-1021.0,0.00036363,120]
[343966111,1733160135256,-2208.37,0.00036438,120]
[343966112,1733160135300,-150.0,0.0003649,120]
[343966113,1733160135344,-2208.37,0.00036712,120]
[343966114,1733160135383,-202.96666667,0.00036795,120]
[343966115,1733160135425,-2208.37,0.00036986,120]
[343966116,1733160135470,-6926.37221973,0.00037,120]
[343966117,1733160135512,-730.86815606,0.00037,90]
[343966118,1733160135552,-878.75,0.00037,120]
[343966119,1733160135592,-300.0,0.00037,120]
[343966120,1733160135631,-151.0,0.00037068,120]
[343966121,1733160135668,-474.90129128,0.000372,103]
[343966122,1733160135712,-474.90129126,0.000372,103]
[343966123,1733160135753,-474.90129126,0.000372,103]
[343966124,1733160135794,-474.90129126,0.000372,103]
[343966125,1733160135834,-474.90129126,0.000372,103]
[343966126,1733160135871,-2208.37,0.0003726,120]
[343966127,1733160135911,-150.0,0.00037262,120]
[343966128,1733160135951,-150.0,0.00037304,120]
[343966129,1733160135998,-1167.08,0.0003733,120]
[343966130,1733160136035,-2000.0,0.00037373,120]
[343966131,1733160136074,-15019.48537156,0.000375,120]
[343966132,1733160136111,-2208.37,0.00037534,120]
[343966133,1733160138751,-202.96666667,0.00037644,120]
[343966134,1733160138791,-2208.37,0.00037808,120]
[343966135,1733160138830,-150.0,0.00037837,120]
[343966136,1733160138870,-33558.03289921,0.000379,120]
[343966137,1733160138909,-50000.0,0.00038,120]
[343966138,1733160138948,-878.75,0.00038,120]
[343966139,1733160138991,-500.0,0.00038,120]
[343966140,1733160139029,-20232.77617886,0.00038,120]
[343966141,1733160139068,-1000.0,0.00038,120]
[343966142,1733160139107,-406.25762453,0.00038,120]
[343966143,1733160139146,-2000.0,0.00038,120]
[343966144,1733160139185,-2024.27424457,0.00038,120]
[343966145,1733160139225,-8882.0,0.00038,120]
[343966146,1733160139266,-7210.62677629,0.00038,120]
[343966147,1733160139306,-3563.81808216,0.00038,120]
[343966148,1733160139346,-150.0,0.00038048,120]
[343966149,1733160139386,-2208.37,0.00038082,120]
[343966150,1733160139426,-151.0,0.00038247,120]
[343966151,1733160139468,-2043.63,0.00038356,120]
[343966152,1733160139508,-2043.63,0.00038356,120]
[343966153,1733160139548,-2043.63,0.00038356,120]
[343966154,1733160139589,-2043.63,0.00038356,120]
[343966155,1733160139628,-2043.63,0.00038356,120]
[343966156,1733160139668,-2043.63,0.00038356,120]
[343966157,1733160139709,-2043.63,0.00038356,120]
[343966158,1733160139747,-2043.63,0.00038356,120]
[343966159,1733160139786,-2043.63,0.00038356,120]
[343966160,1733160139823,-2043.63,0.00038356,120]
[343966161,1733160139860,-2043.63,0.00038356,120]
[343966162,1733160139897,-2043.63,0.00038356,120]
[343966163,1733160139935,-2043.63,0.00038356,120]
[343966164,1733160139972,-2043.63,0.00038356,120]
[343966165,1733160140009,-2043.63,0.00038356,120]
[343966166,1733160140048,-2043.63,0.00038356,120]
[343966167,1733160140087,-2043.63,0.00038356,120]
[343966168,1733160140128,-2043.63,0.00038356,120]
[343966169,1733160140169,-2043.63,0.00038356,120]
[343966170,1733160140207,-2043.63,0.00038356,120]
[343966171,1733160140250,-2043.63,0.00038356,120]
[343966172,1733160140287,-2043.63,0.00038356,120]
[343966173,1733160140762,-2043.63,0.00038356,120]
[343966174,1733160140799,-2043.81535699,0.00038356,120]
[343966175,1733160140835,-10000.0,0.00038356,120]
[343966176,1733160140872,-10000.0,0.00038356,120]
[343966177,1733160140909,-10000.0,0.00038356,120]
[343966178,1733160140946,-10000.0,0.00038356,120]
[343966179,1733160140988,-10000.0,0.00038356,120]
[343966180,1733160141028,-10000.0,0.00038356,120]
[343966181,1733160141067,-10000.0,0.00038356,120]